[Event "Titled Tuesday Blitz March 28 Early 2023"]
[White "Jiganchine, Roman"]
[Black "Alinasab, Mobina"]
[WhiteFideId "2603667"]
[BlackFideId "12528897"]
[WhiteElo "2328"]
[BlackElo "2141"]
[Result "0-1"]
[Round "02"]
[TimeControl "180+2"]
[Date "2023.03.28"]
[WhiteClock "0:00:01"]
[BlackClock "0:00:49"]

1. e4 {[%clk 0:02:59]}  c5 {[%clk 0:02:59]} 2. Nf3 {[%clk 0:02:58]}  e6 {[%clk 0:02:59]} 3. g3 {[%clk 0:02:56]}  Nc6 {[%clk 0:02:56]} 4. Bg2 {[%clk 0:02:56]}  d6 {[%clk 0:02:56]} 5. O-O {[%clk 0:02:55]}  Nf6 {[%clk 0:02:53]} 6. Re1 {[%clk 0:02:53]}  Be7 {[%clk 0:02:53]} 7. c3 {[%clk 0:02:53]}  O-O {[%clk 0:02:48]} 8. d4 {[%clk 0:02:53]}  e5 {[%clk 0:02:46]} 9. h3 {[%clk 0:02:46]}  Re8 {[%clk 0:02:46]} 10. d5 {[%clk 0:02:38]}  Nb8 {[%clk 0:02:46]} 11. a4 {[%clk 0:02:38]}  Rf8 {[%clk 0:02:38]} 12. a5 {[%clk 0:02:38]}  Ne8 {[%clk 0:02:36]} 13. Nbd2 {[%clk 0:02:37]}  f5 {[%clk 0:02:35]} 14. Nc4 {[%clk 0:02:32]}  fxe4 {[%clk 0:02:34]} 15. Nfd2 {[%clk 0:02:32]}  Nf6 {[%clk 0:02:31]} 16. Nxe4 {[%clk 0:02:28]}  Nxe4 {[%clk 0:02:32]} 17. Bxe4 {[%clk 0:02:18]}  Nd7 {[%clk 0:02:22]} 18. Be3 {[%clk 0:02:08]}  Nf6 {[%clk 0:02:19]} 19. Bg2 {[%clk 0:02:06]}  Bf5 {[%clk 0:02:18]} 20. Bxc5 {[%clk 0:01:29]}  Qc7 {[%clk 0:01:47]} 21. Ne3 {[%clk 0:01:07]}  Be4 {[%clk 0:01:40]} 22. Bb4 {[%clk 0:01:00]}  Bxg2 {[%clk 0:01:34]} 23. Kxg2 {[%clk 0:01:01]}  Ne4 {[%clk 0:01:35]} 24. f3 {[%clk 0:00:56]}  Ng5 {[%clk 0:01:30]} 25. Rf1 {[%clk 0:00:50]}  Qd7 {[%clk 0:01:25]} 26. g4 {[%clk 0:00:38]}  g6 {[%clk 0:01:09]} 27. h4 {[%clk 0:00:31]}  Nf7 {[%clk 0:01:03]} 28. h5 {[%clk 0:00:31]}  Ng5 {[%clk 0:01:01]} 29. c4 {[%clk 0:00:24]}  Rf4 {[%clk 0:01:00]} 30. Bc3 {[%clk 0:00:15]}  Raf8 {[%clk 0:00:58]} 31. hxg6 {[%clk 0:00:09]}  hxg6 {[%clk 0:00:59]} 32. Nf5 {[%clk 0:00:05]}  gxf5 {[%clk 0:00:56]} 33. Bd2 {[%clk 0:00:05]}  fxg4 {[%clk 0:00:55]} 34. Bxf4 {[%clk 0:00:04]}  Rxf4 {[%clk 0:00:56]} 35. Qd3 {[%clk 0:00:02]}  gxf3+ {[%clk 0:00:55]} 36. Rxf3 {[%clk 0:00:01]}  e4 {[%clk 0:00:49]} 0-1


[Site "https://www.chess.com"]

[Event "Titled Tuesday Blitz March 28 Early 2023"]
[White "Prudnykova, Olga"]
[Black "Arias, Juan Cruz"]
[WhiteFideId "14121093"]
[BlackFideId "118540"]
[WhiteElo "2113"]
[BlackElo "2243"]
[Result "0-1"]
[Round "02"]
[TimeControl "180+2"]
[Date "2023.03.28"]
[WhiteClock "0:00:07"]
[BlackClock "0:00:49"]

1. e4 {[%clk 0:02:59]}  c6 {[%clk 0:03:00]} 2. d4 {[%clk 0:02:59]}  d5 {[%clk 0:03:00]} 3. exd5 {[%clk 0:02:59]}  cxd5 {[%clk 0:03:00]} 4. c4 {[%clk 0:02:59]}  Nf6 {[%clk 0:03:00]} 5. Nc3 {[%clk 0:02:59]}  Nc6 {[%clk 0:03:00]} 6. Nf3 {[%clk 0:02:58]}  a6 {[%clk 0:02:59]} 7. c5 {[%clk 0:02:46]}  Ne4 {[%clk 0:02:55]} 8. Be3 {[%clk 0:02:43]}  g6 {[%clk 0:02:54]} 9. h3 {[%clk 0:02:37]}  Bg7 {[%clk 0:02:53]} 10. Bd3 {[%clk 0:02:37]}  Bf5 {[%clk 0:02:52]} 11. O-O {[%clk 0:02:29]}  O-O {[%clk 0:02:50]} 12. Re1 {[%clk 0:02:28]}  e6 {[%clk 0:02:44]} 13. Bf1 {[%clk 0:02:21]}  h5 {[%clk 0:02:36]} 14. Rc1 {[%clk 0:02:16]}  Re8 {[%clk 0:02:27]} 15. Qa4 {[%clk 0:02:09]}  Qd7 {[%clk 0:02:24]} 16. Nh2 {[%clk 0:02:01]}  e5 {[%clk 0:02:15]} 17. dxe5 {[%clk 0:01:58]}  d4 {[%clk 0:02:11]} 18. Nxe4 {[%clk 0:01:51]}  dxe3 {[%clk 0:02:09]} 19. Nd6 {[%clk 0:01:36]}  exf2+ {[%clk 0:02:06]} 20. Kxf2 {[%clk 0:01:37]}  Bxe5 {[%clk 0:02:02]} 21. Nf3 {[%clk 0:01:36]}  Bxd6 {[%clk 0:02:00]} 22. cxd6 {[%clk 0:01:32]}  Qxd6 {[%clk 0:02:01]} 23. Red1 {[%clk 0:01:22]}  Qc7 {[%clk 0:01:50]} 24. Qb3 {[%clk 0:01:17]}  Rad8 {[%clk 0:01:44]} 25. Kg1 {[%clk 0:01:17]}  Rxd1 {[%clk 0:01:40]} 26. Rxd1 {[%clk 0:01:18]}  Rd8 {[%clk 0:01:34]} 27. Re1 {[%clk 0:01:17]}  Be6 {[%clk 0:01:32]} 28. Qc3 {[%clk 0:01:13]}  Qb6+ {[%clk 0:01:28]} 29. Kh1 {[%clk 0:01:07]}  Qb4 {[%clk 0:01:27]} 30. Qf6 {[%clk 0:01:05]}  Qe7 {[%clk 0:01:24]} 31. Qc3 {[%clk 0:01:04]}  Qd7 {[%clk 0:01:22]} 32. Ng5 {[%clk 0:00:59]}  Bd5 {[%clk 0:01:21]} 33. Bc4 {[%clk 0:00:48]}  Bxc4 {[%clk 0:01:18]} 34. Qxc4 {[%clk 0:00:48]}  Qd5 {[%clk 0:01:18]} 35. Qc1 {[%clk 0:00:18]}  Qd2 {[%clk 0:01:13]} 36. Re8+ {[%clk 0:00:18]}  Kg7 {[%clk 0:01:10]} 37. Qxd2 {[%clk 0:00:17]}  Rxd2 {[%clk 0:00:58]} 38. Rc8 {[%clk 0:00:18]}  Rd7 {[%clk 0:00:56]} 39. Kg1 {[%clk 0:00:16]}  Kf6 {[%clk 0:00:55]} 40. Ne4+ {[%clk 0:00:16]}  Ke5 {[%clk 0:00:55]} 41. Nc5 {[%clk 0:00:17]}  Re7 {[%clk 0:00:55]} 42. a3 {[%clk 0:00:10]}  Kd5 {[%clk 0:00:49]} 43. Nxa6 {[%clk 0:00:09]}  bxa6 {[%clk 0:00:49]} 44. Ra8 {[%clk 0:00:08]}  a5 {[%clk 0:00:49]} 45. Ra6 {[%clk 0:00:07]}  Rb7 {[%clk 0:00:49]} 0-1


[Site "https://www.chess.com"]

[Event "Titled Tuesday Blitz March 28 Early 2023"]
[White "Roebers, Eline"]
[Black "Gronnestad, Anita"]
[WhiteFideId "1058401"]
[BlackFideId "1502972"]
[WhiteElo "2511"]
[BlackElo "1939"]
[Result "1-0"]
[Round "02"]
[TimeControl "180+2"]
[Date "2023.03.28"]
[WhiteClock "0:00:27"]
[BlackClock "0:00:01"]

1. e4 {[%clk 0:03:00]}  c6 {[%clk 0:02:59]} 2. Nf3 {[%clk 0:02:59]}  d5 {[%clk 0:02:59]} 3. Nc3 {[%clk 0:03:00]}  dxe4 {[%clk 0:02:59]} 4. Nxe4 {[%clk 0:03:01]}  Nf6 {[%clk 0:03:00]} 5. Qe2 {[%clk 0:03:01]}  Nxe4 {[%clk 0:02:59]} 6. Qxe4 {[%clk 0:03:02]}  Nd7 {[%clk 0:03:00]} 7. Bc4 {[%clk 0:03:02]}  Nf6 {[%clk 0:03:00]} 8. Ne5 {[%clk 0:03:03]}  e6 {[%clk 0:03:00]} 9. Qe2 {[%clk 0:03:03]}  Bd6 {[%clk 0:02:59]} 10. O-O {[%clk 0:03:02]}  O-O {[%clk 0:02:54]} 11. d4 {[%clk 0:03:01]}  Qc7 {[%clk 0:02:54]} 12. Bg5 {[%clk 0:02:57]}  Nd5 {[%clk 0:02:51]} 13. Bh4 {[%clk 0:02:56]}  b5 {[%clk 0:02:35]} 14. Bb3 {[%clk 0:02:53]}  a6 {[%clk 0:02:35]} 15. c3 {[%clk 0:02:49]}  Bb7 {[%clk 0:02:35]} 16. Bc2 {[%clk 0:02:38]}  Nf4 {[%clk 0:02:27]} 17. Qe3 {[%clk 0:02:19]}  Ng6 {[%clk 0:01:59]} 18. Bg3 {[%clk 0:02:19]}  c5 {[%clk 0:01:55]} 19. Nxg6 {[%clk 0:02:17]}  Bxg3 {[%clk 0:01:50]} 20. Nxf8 {[%clk 0:02:06]}  Bxh2+ {[%clk 0:01:49]} 21. Kh1 {[%clk 0:02:06]}  Kxf8 {[%clk 0:01:27]} 22. dxc5 {[%clk 0:02:03]}  Bf4 {[%clk 0:00:58]} 23. Qh3 {[%clk 0:01:47]}  Qc6 {[%clk 0:00:47]} 24. Rad1 {[%clk 0:01:41]}  h5 {[%clk 0:00:42]} 25. Rfe1 {[%clk 0:01:38]}  Qxc5 {[%clk 0:00:36]} 26. Rd7 {[%clk 0:01:34]}  Qxf2 {[%clk 0:00:33]} 27. Rg1 {[%clk 0:01:08]}  Bc6 {[%clk 0:00:24]} 28. Rd4 {[%clk 0:00:35]}  Be3 {[%clk 0:00:20]} 29. Rdd1 {[%clk 0:00:34]}  Re8 {[%clk 0:00:14]} 30. Rgf1 {[%clk 0:00:33]}  Qe2 {[%clk 0:00:13]} 31. Bd3 {[%clk 0:00:32]}  Qxb2 {[%clk 0:00:07]} 32. Bg6 {[%clk 0:00:31]}  Re7 {[%clk 0:00:04]} 33. Rd8+ {[%clk 0:00:30]}  Be8 {[%clk 0:00:03]} 34. Qxe3 {[%clk 0:00:29]}  h4 {[%clk 0:00:02]} 35. Qc5 {[%clk 0:00:27]}  h3 {[%clk 0:00:01]} 36. Rxe8+ {[%clk 0:00:27]}  Kxe8 {[%clk 0:00:01]} 37. Qc8# {[%clk 0:00:27]} 1-0


[Site "https://www.chess.com"]

[Event "Titled Tuesday Blitz March 28 Early 2023"]
[White "Lukas2010"]
[Black "Mika, Tomasz"]
[BlackFideId "1132970"]
[WhiteElo "2510"]
[BlackElo "2179"]
[Result "0-1"]
[Round "02"]
[TimeControl "180+2"]
[Date "2023.03.28"]
[WhiteClock "0:00:12"]
[BlackClock "0:00:08"]

1. e4 {[%clk 0:03:00]}  d6 {[%clk 0:02:58]} 2. d4 {[%clk 0:03:00]}  Nf6 {[%clk 0:02:58]} 3. Nc3 {[%clk 0:02:58]}  g6 {[%clk 0:02:59]} 4. Be3 {[%clk 0:02:57]}  a6 {[%clk 0:02:57]} 5. f3 {[%clk 0:02:54]}  Bg7 {[%clk 0:02:55]} 6. Qd2 {[%clk 0:02:54]}  Nc6 {[%clk 0:02:42]} 7. O-O-O {[%clk 0:02:53]}  O-O {[%clk 0:02:41]} 8. h4 {[%clk 0:02:52]}  h5 {[%clk 0:02:37]} 9. Nh3 {[%clk 0:02:49]}  b5 {[%clk 0:02:36]} 10. Bh6 {[%clk 0:02:48]}  b4 {[%clk 0:02:34]} 11. Nd5 {[%clk 0:02:35]}  a5 {[%clk 0:02:19]} 12. Bxg7 {[%clk 0:02:14]}  Kxg7 {[%clk 0:02:18]} 13. Nf2 {[%clk 0:02:02]}  e6 {[%clk 0:01:42]} 14. Ne3 {[%clk 0:01:51]}  e5 {[%clk 0:01:34]} 15. dxe5 {[%clk 0:01:20]}  dxe5 {[%clk 0:01:34]} 16. Qe1 {[%clk 0:01:17]}  Qe7 {[%clk 0:01:31]} 17. Nd5 {[%clk 0:01:15]}  Qe6 {[%clk 0:00:51]} 18. Bc4 {[%clk 0:00:58]}  Qd6 {[%clk 0:00:46]} 19. Qe3 {[%clk 0:00:36]}  Nd4 {[%clk 0:00:41]} 20. f4 {[%clk 0:00:24]}  Qc5 {[%clk 0:00:40]} 21. fxe5 {[%clk 0:00:18]}  Nxd5 {[%clk 0:00:39]} 22. Qxd4 {[%clk 0:00:16]}  Qxd4 {[%clk 0:00:37]} 23. Rxd4 {[%clk 0:00:17]}  Ne3 {[%clk 0:00:35]} 24. Bd5 {[%clk 0:00:14]}  Ra6 {[%clk 0:00:33]} 25. g3 {[%clk 0:00:12]}  Rd8 {[%clk 0:00:29]} 26. Rd3 {[%clk 0:00:12]}  Ng4 {[%clk 0:00:27]} 27. Nxg4 {[%clk 0:00:10]}  Bxg4 {[%clk 0:00:28]} 28. Rf1 {[%clk 0:00:10]}  Rd7 {[%clk 0:00:25]} 29. Rf4 {[%clk 0:00:08]}  Re7 {[%clk 0:00:24]} 30. Rd2 {[%clk 0:00:08]}  c6 {[%clk 0:00:20]} 31. Bc4 {[%clk 0:00:07]}  Raa7 {[%clk 0:00:20]} 32. Rdf2 {[%clk 0:00:07]}  Be6 {[%clk 0:00:20]} 33. Bd3 {[%clk 0:00:05]}  a4 {[%clk 0:00:20]} 34. b3 {[%clk 0:00:04]}  c5 {[%clk 0:00:19]} 35. Rf6 {[%clk 0:00:04]}  Rec7 {[%clk 0:00:14]} 36. Kd2 {[%clk 0:00:03]}  axb3 {[%clk 0:00:13]} 37. axb3 {[%clk 0:00:03]}  Ra2 {[%clk 0:00:13]} 38. Ke3 {[%clk 0:00:03]}  Rd7 {[%clk 0:00:12]} 39. g4 {[%clk 0:00:02]}  Bxg4 {[%clk 0:00:11]} 40. Bc4 {[%clk 0:00:02]}  Be6 {[%clk 0:00:08]} 41. Bxe6 {[%clk 0:00:02]}  fxe6 {[%clk 0:00:09]} 42. Rxe6 {[%clk 0:00:03]}  Ra1 {[%clk 0:00:08]} 43. Rg2 {[%clk 0:00:03]}  Re1+ {[%clk 0:00:08]} 44. Kf2 {[%clk 0:00:03]}  Rd2+ {[%clk 0:00:08]} 45. Kxe1 {[%clk 0:00:04]}  Rxg2 {[%clk 0:00:08]} 46. Re7+ {[%clk 0:00:04]}  Kf8 {[%clk 0:00:08]} 47. Rc7 {[%clk 0:00:05]}  Rxc2 {[%clk 0:00:08]} 48. e6 {[%clk 0:00:05]}  Ke8 {[%clk 0:00:07]} 49. Rg7 {[%clk 0:00:05]}  Rc3 {[%clk 0:00:05]} 50. Rxg6 {[%clk 0:00:05]}  Ke7 {[%clk 0:00:06]} 51. Rh6 {[%clk 0:00:05]}  Rxb3 {[%clk 0:00:06]} 52. Rxh5 {[%clk 0:00:06]}  c4 {[%clk 0:00:05]} 53. Rc5 {[%clk 0:00:06]}  Rc3 {[%clk 0:00:05]} 54. h5 {[%clk 0:00:05]}  b3 {[%clk 0:00:04]} 55. Kd2 {[%clk 0:00:06]}  Rd3+ {[%clk 0:00:03]} 56. Kc1 {[%clk 0:00:06]}  c3 {[%clk 0:00:02]} 57. Rc7+ {[%clk 0:00:05]}  Kxe6 {[%clk 0:00:02]} 58. Rb7 {[%clk 0:00:06]}  b2+ {[%clk 0:00:01]} 59. Kc2 {[%clk 0:00:07]}  Rh3 {[%clk 0:00:02]} 60. h6 {[%clk 0:00:05]}  Ke5 {[%clk 0:00:01]} 61. h7 {[%clk 0:00:06]}  Kd4 {[%clk 0:00:02]} 62. Rd7+ {[%clk 0:00:05]}  Kxe4 {[%clk 0:00:02]} 63. Re7+ {[%clk 0:00:06]}  Kd4 {[%clk 0:00:03]} 64. Rd7+ {[%clk 0:00:06]}  Ke5 {[%clk 0:00:03]} 65. Re7+ {[%clk 0:00:07]}  Kd6 {[%clk 0:00:03]} 66. Rb7 {[%clk 0:00:07]}  Kc6 {[%clk 0:00:02]} 67. Rb3 {[%clk 0:00:06]}  Kd5 {[%clk 0:00:02]} 68. Rb5+ {[%clk 0:00:06]}  Kc4 {[%clk 0:00:02]} 69. Rb7 {[%clk 0:00:04]}  Rh2+ {[%clk 0:00:02]} 70. Kb1 {[%clk 0:00:04]}  Rh1+ {[%clk 0:00:02]} 71. Ka2 {[%clk 0:00:05]}  Rh2 {[%clk 0:00:01]} 72. Rc7+ {[%clk 0:00:05]}  Kd3 {[%clk 0:00:02]} 73. Rd7+ {[%clk 0:00:05]}  Kc2 {[%clk 0:00:02]} 74. Rb7 {[%clk 0:00:05]}  Rh1 {[%clk 0:00:01]} 75. Rxb2+ {[%clk 0:00:03]}  cxb2 {[%clk 0:00:01]} 76. h8=Q {[%clk 0:00:04]}  Rxh8 {[%clk 0:00:01]} 77. Ka3 {[%clk 0:00:04]}  Ra8+ {[%clk 0:00:02]} 78. Kb4 {[%clk 0:00:05]}  b1=Q+ {[%clk 0:00:02]} 79. Kc4 {[%clk 0:00:06]}  Qb2 {[%clk 0:00:03]} 80. Kd5 {[%clk 0:00:07]}  Rb8 {[%clk 0:00:03]} 81. Ke6 {[%clk 0:00:07]}  Rb7 {[%clk 0:00:04]} 82. Kf5 {[%clk 0:00:08]}  Rb3 {[%clk 0:00:05]} 83. Kg6 {[%clk 0:00:09]}  Qc3 {[%clk 0:00:06]} 84. Kh5 {[%clk 0:00:10]}  Qd2 {[%clk 0:00:06]} 85. Kg6 {[%clk 0:00:11]}  Re3 {[%clk 0:00:07]} 86. Kh7 {[%clk 0:00:12]}  Qf2 {[%clk 0:00:08]} 87. Kg8 {[%clk 0:00:12]}  Rg3+ {[%clk 0:00:08]} 0-1


[Site "https://www.chess.com"]

[Event "Titled Tuesday Blitz March 28 Early 2023"]
[White "Xu, Daniel"]
[Black "TheKnightOfBosnia"]
[WhiteFideId "2627345"]
[WhiteElo "1980"]
[BlackElo "2508"]
[Result "1-0"]
[Round "02"]
[TimeControl "180+2"]
[Date "2023.03.28"]
[WhiteClock "0:00:34"]
[BlackClock "0:00:40"]

1. e4 {[%clk 0:03:00]}  e5 {[%clk 0:02:59]} 2. Nf3 {[%clk 0:03:00]}  Nc6 {[%clk 0:03:00]} 3. Bb5 {[%clk 0:02:59]}  a6 {[%clk 0:03:00]} 4. Ba4 {[%clk 0:02:59]}  Nf6 {[%clk 0:03:00]} 5. O-O {[%clk 0:02:59]}  b5 {[%clk 0:03:01]} 6. Bb3 {[%clk 0:02:59]}  Bb7 {[%clk 0:03:02]} 7. Re1 {[%clk 0:02:59]}  Bc5 {[%clk 0:03:02]} 8. c3 {[%clk 0:02:56]}  O-O {[%clk 0:03:01]} 9. h3 {[%clk 0:02:56]}  d6 {[%clk 0:02:58]} 10. d4 {[%clk 0:02:53]}  Bb6 {[%clk 0:02:58]} 11. Bc2 {[%clk 0:02:36]}  h6 {[%clk 0:02:57]} 12. a3 {[%clk 0:02:33]}  Re8 {[%clk 0:02:53]} 13. Be3 {[%clk 0:02:12]}  exd4 {[%clk 0:02:48]} 14. cxd4 {[%clk 0:02:13]}  Qd7 {[%clk 0:02:13]} 15. Nc3 {[%clk 0:02:06]}  b4 {[%clk 0:02:09]} 16. axb4 {[%clk 0:01:52]}  Nxb4 {[%clk 0:02:09]} 17. Ba4 {[%clk 0:01:52]}  Bc6 {[%clk 0:02:08]} 18. Bxc6 {[%clk 0:01:51]}  Qxc6 {[%clk 0:02:08]} 19. d5 {[%clk 0:01:27]}  Qc4 {[%clk 0:02:06]} 20. Bxb6 {[%clk 0:01:26]}  cxb6 {[%clk 0:02:07]} 21. Nd2 {[%clk 0:01:24]}  Qd4 {[%clk 0:01:52]} 22. Nb3 {[%clk 0:01:20]}  Qxd1 {[%clk 0:01:51]} 23. Raxd1 {[%clk 0:01:20]}  Rac8 {[%clk 0:01:40]} 24. Nd4 {[%clk 0:01:18]}  Rc4 {[%clk 0:01:38]} 25. f3 {[%clk 0:01:13]}  Rxd4 {[%clk 0:01:32]} 26. Rxd4 {[%clk 0:01:13]}  Nc2 {[%clk 0:01:32]} 27. Red1 {[%clk 0:01:13]}  Nxd4 {[%clk 0:01:32]} 28. Rxd4 {[%clk 0:01:14]}  Rc8 {[%clk 0:01:26]} 29. Ra4 {[%clk 0:01:12]}  a5 {[%clk 0:01:24]} 30. Nb5 {[%clk 0:01:11]}  Rc1+ {[%clk 0:01:19]} 31. Kh2 {[%clk 0:01:08]}  Ne8 {[%clk 0:01:17]} 32. Ra3 {[%clk 0:01:02]}  Kf8 {[%clk 0:01:14]} 33. Rb3 {[%clk 0:01:01]}  Rc8 {[%clk 0:01:03]} 34. Na7 {[%clk 0:00:58]}  Rb8 {[%clk 0:01:01]} 35. Nc6 {[%clk 0:00:58]}  Rb7 {[%clk 0:01:01]} 36. Nxa5 {[%clk 0:00:58]}  Ra7 {[%clk 0:00:58]} 37. Nc6 {[%clk 0:00:58]}  Rb7 {[%clk 0:00:58]} 38. Kg3 {[%clk 0:00:52]}  g6 {[%clk 0:00:55]} 39. Kf4 {[%clk 0:00:51]}  Nf6 {[%clk 0:00:54]} 40. Ke3 {[%clk 0:00:47]}  Nd7 {[%clk 0:00:53]} 41. Ra3 {[%clk 0:00:42]}  Kg7 {[%clk 0:00:51]} 42. Ra7 {[%clk 0:00:41]}  Rxa7 {[%clk 0:00:51]} 43. Nxa7 {[%clk 0:00:42]}  Kf6 {[%clk 0:00:50]} 44. Nc8 {[%clk 0:00:41]}  Ne5 {[%clk 0:00:39]} 45. Nxb6 {[%clk 0:00:36]}  Ke7 {[%clk 0:00:40]} 46. f4 {[%clk 0:00:34]} 1-0


[Site "https://www.chess.com"]

[Event "Titled Tuesday Blitz March 28 Early 2023"]
[White "Ardila, Oscar Humberto"]
[Black "Jumanov, Elbek"]
[WhiteFideId "4404742"]
[BlackFideId "14202905"]
[WhiteElo "1911"]
[BlackElo "2055"]
[Result "0-1"]
[Round "02"]
[TimeControl "180+2"]
[Date "2023.03.28"]
[WhiteClock "0:00:01"]
[BlackClock "0:02:30"]

1. d4 {[%clk 0:02:42]}  Nf6 {[%clk 0:02:58]} 2. c4 {[%clk 0:02:39]}  c5 {[%clk 0:02:57]} 3. dxc5 {[%clk 0:02:05]}  Na6 {[%clk 0:02:54]} 4. Nf3 {[%clk 0:01:33]}  Nxc5 {[%clk 0:02:53]} 5. e3 {[%clk 0:00:27]}  g6 {[%clk 0:02:49]} 6. Be2 {[%clk 0:00:20]}  Bg7 {[%clk 0:02:47]} 7. O-O {[%clk 0:00:08]}  d6 {[%clk 0:02:47]} 8. Nc3 {[%clk 0:00:06]}  O-O {[%clk 0:02:47]} 9. Qc2 {[%clk 0:00:07]}  Bf5 {[%clk 0:02:45]} 10. e4 {[%clk 0:00:05]}  Nfxe4 {[%clk 0:02:44]} 11. Nxe4 {[%clk 0:00:02]}  Bxe4 {[%clk 0:02:42]} 12. Qd1 {[%clk 0:00:01]}  Rc8 {[%clk 0:02:40]} 13. Bg5 {[%clk 0:00:02]}  Bxb2 {[%clk 0:02:32]} 14. Rb1 {[%clk 0:00:02]}  Bxb1 {[%clk 0:02:31]} 15. Qxb1 {[%clk 0:00:01]}  Bg7 {[%clk 0:02:30]} 0-1


[Site "https://www.chess.com"]

[Event "Titled Tuesday Blitz March 28 Early 2023"]
[White "Garv Gaur"]
[Black "sebastianmarinp"]
[WhiteFideId "45030839"]
[WhiteElo "2068"]
[BlackElo "2302"]
[Result "1-0"]
[Round "02"]
[TimeControl "180+2"]
[Date "2023.03.28"]
[WhiteClock "0:00:21"]
[BlackClock "0:00:07"]

1. e4 {[%clk 0:02:53]}  e5 {[%clk 0:02:03]} 2. Nf3 {[%clk 0:02:50]}  Nc6 {[%clk 0:02:03]} 3. d3 {[%clk 0:02:46]}  Nf6 {[%clk 0:02:02]} 4. g3 {[%clk 0:02:45]}  d5 {[%clk 0:01:56]} 5. exd5 {[%clk 0:02:44]}  Nxd5 {[%clk 0:01:55]} 6. Bg2 {[%clk 0:02:43]}  Be6 {[%clk 0:01:54]} 7. O-O {[%clk 0:02:43]}  f6 {[%clk 0:01:54]} 8. Re1 {[%clk 0:02:42]}  Qd7 {[%clk 0:01:48]} 9. d4 {[%clk 0:02:43]}  O-O-O {[%clk 0:01:45]} 10. dxe5 {[%clk 0:02:42]}  Bh3 {[%clk 0:01:42]} 11. c4 {[%clk 0:02:15]}  Bxg2 {[%clk 0:01:38]} 12. Kxg2 {[%clk 0:02:13]}  Ndb4 {[%clk 0:01:34]} 13. Qxd7+ {[%clk 0:02:03]}  Rxd7 {[%clk 0:01:35]} 14. e6 {[%clk 0:02:04]}  Rd8 {[%clk 0:01:27]} 15. Na3 {[%clk 0:02:03]}  Nd3 {[%clk 0:01:17]} 16. Re2 {[%clk 0:01:52]}  Nce5 {[%clk 0:01:04]} 17. Nc2 {[%clk 0:01:41]}  Nxf3 {[%clk 0:00:55]} 18. Kxf3 {[%clk 0:01:41]}  Bc5 {[%clk 0:00:55]} 19. b3 {[%clk 0:01:28]}  Rhe8 {[%clk 0:00:53]} 20. Bf4 {[%clk 0:01:17]}  g5 {[%clk 0:00:46]} 21. Bd2 {[%clk 0:01:07]}  Ne5+ {[%clk 0:00:35]} 22. Kg2 {[%clk 0:01:05]}  Rxe6 {[%clk 0:00:31]} 23. f4 {[%clk 0:00:38]}  Red6 {[%clk 0:00:31]} 24. Bc3 {[%clk 0:00:37]}  Ng4 {[%clk 0:00:30]} 25. h3 {[%clk 0:00:31]}  Nh6 {[%clk 0:00:25]} 26. b4 {[%clk 0:00:31]}  Rd3 {[%clk 0:00:20]} 27. Bxf6 {[%clk 0:00:31]}  gxf4 {[%clk 0:00:18]} 28. Bxd8 {[%clk 0:00:21]}  Rxg3+ {[%clk 0:00:18]} 29. Kh2 {[%clk 0:00:21]}  Bd6 {[%clk 0:00:14]} 30. c5 {[%clk 0:00:21]}  f3 {[%clk 0:00:08]} 31. cxd6 {[%clk 0:00:21]}  fxe2 {[%clk 0:00:07]} 32. Kxg3 {[%clk 0:00:21]} 1-0


[Site "https://www.chess.com"]

[Event "Titled Tuesday Blitz March 28 Early 2023"]
[White "Rosenberg, Evan S"]
[Black "Rom, Jasper"]
[WhiteFideId "2019299"]
[BlackFideId "2023733"]
[WhiteElo "2296"]
[BlackElo "2233"]
[Result "1-0"]
[Round "02"]
[TimeControl "180+2"]
[Date "2023.03.28"]
[WhiteClock "0:00:13"]
[BlackClock "0:00:01"]

1. d4 {[%clk 0:03:00]}  d5 {[%clk 0:02:58]} 2. Nf3 {[%clk 0:03:00]}  e6 {[%clk 0:02:58]} 3. g3 {[%clk 0:02:57]}  Nf6 {[%clk 0:02:57]} 4. Bg2 {[%clk 0:02:58]}  Nbd7 {[%clk 0:02:58]} 5. O-O {[%clk 0:02:58]}  Bd6 {[%clk 0:02:57]} 6. c4 {[%clk 0:02:58]}  c6 {[%clk 0:02:57]} 7. Nfd2 {[%clk 0:02:53]}  O-O {[%clk 0:02:51]} 8. Nc3 {[%clk 0:02:52]}  dxc4 {[%clk 0:02:42]} 9. e4 {[%clk 0:02:50]}  e5 {[%clk 0:02:39]} 10. Nxc4 {[%clk 0:02:48]}  Bc7 {[%clk 0:02:39]} 11. d5 {[%clk 0:02:47]}  Nb6 {[%clk 0:02:30]} 12. b3 {[%clk 0:02:42]}  Nxc4 {[%clk 0:01:42]} 13. bxc4 {[%clk 0:02:42]}  Bb6 {[%clk 0:01:43]} 14. Ba3 {[%clk 0:02:38]}  Bd4 {[%clk 0:01:32]} 15. Rc1 {[%clk 0:02:14]}  Re8 {[%clk 0:01:21]} 16. Ne2 {[%clk 0:02:00]}  Qa5 {[%clk 0:01:10]} 17. Bd6 {[%clk 0:01:46]}  Bg4 {[%clk 0:01:03]} 18. h3 {[%clk 0:01:41]}  Bxe2 {[%clk 0:00:58]} 19. Qxe2 {[%clk 0:01:42]}  c5 {[%clk 0:00:57]} 20. Rb1 {[%clk 0:01:28]}  Qd8 {[%clk 0:00:53]} 21. Bxc5 {[%clk 0:01:16]}  Bxc5 {[%clk 0:00:52]} 22. Rxb7 {[%clk 0:01:17]}  Bb6 {[%clk 0:00:45]} 23. c5 {[%clk 0:01:09]}  Bxc5 {[%clk 0:00:43]} 24. Rbb1 {[%clk 0:01:00]}  Rb8 {[%clk 0:00:41]} 25. Rbc1 {[%clk 0:01:00]}  Bd4 {[%clk 0:00:41]} 26. Rc6 {[%clk 0:00:59]}  Rb2 {[%clk 0:00:33]} 27. Qa6 {[%clk 0:00:59]}  Rb6 {[%clk 0:00:20]} 28. Rxb6 {[%clk 0:00:59]}  Qxb6 {[%clk 0:00:19]} 29. Qa4 {[%clk 0:00:58]}  Rc8 {[%clk 0:00:17]} 30. g4 {[%clk 0:00:58]}  h6 {[%clk 0:00:17]} 31. Bf3 {[%clk 0:00:57]}  Rc3 {[%clk 0:00:16]} 32. Kg2 {[%clk 0:00:57]}  Qc5 {[%clk 0:00:10]} 33. h4 {[%clk 0:00:57]}  Rc2 {[%clk 0:00:10]} 34. g5 {[%clk 0:00:57]}  hxg5 {[%clk 0:00:10]} 35. hxg5 {[%clk 0:00:57]}  Nh7 {[%clk 0:00:09]} 36. g6 {[%clk 0:00:46]}  fxg6 {[%clk 0:00:09]} 37. Qe8+ {[%clk 0:00:46]}  Nf8 {[%clk 0:00:09]} 38. Bg4 {[%clk 0:00:45]}  Rxf2+ {[%clk 0:00:02]} 39. Rxf2 {[%clk 0:00:45]}  Bxf2 {[%clk 0:00:02]} 40. Be6+ {[%clk 0:00:45]}  Kh7 {[%clk 0:00:03]} 41. Qf7 {[%clk 0:00:43]}  Be3 {[%clk 0:00:02]} 42. Qg8+ {[%clk 0:00:20]}  Kh6 {[%clk 0:00:02]} 43. Qh8+ {[%clk 0:00:19]}  Kg5 {[%clk 0:00:02]} 44. Qxg7 {[%clk 0:00:17]}  Qc2+ {[%clk 0:00:02]} 45. Kh1 {[%clk 0:00:15]}  Qf2 {[%clk 0:00:01]} 46. Qxe5+ {[%clk 0:00:14]}  Kh6 {[%clk 0:00:01]} 47. Qh2+ {[%clk 0:00:13]} 1-0


[Site "https://www.chess.com"]